bitfinex-derivatives/quotes_ETHF0:USTF0_20210111
["timestamp","ask_amount","ask_price","bid_price","bid_amount"]
[1610374493236,4.00959,958.86,957.58,1.5476]
[1610374493433,4.00959,958.86,957.0,1.67845312]
[1610374494034,4.00959,958.86,957.0,0.00625312]
[1610374494233,4.00959,957.01,957.0,0.00625312]
[1610374494435,1.719,959.06,957.0,0.00625312]
[1610374494648,1.719,959.06,957.0,2.28625312]
[1610374494833,1.739,959.44,957.0,2.28625312]
[1610374495034,1.739,959.44,957.01,2.1031]
[1610374495234,1.739,959.44,957.0,2.28625312]
[1610374495235,1.05235,958.67,957.0,0.65975312]
[1610374495434,1.05235,958.67,955.0,2.46463881]
[1610374496035,2.66935,958.67,955.0,2.46463881]
[1610374496234,4.00959,955.81,955.6,4.00959]
[1610374496434,1.0435,957.76,955.0,2.46463881]
[1610374496635,1.0435,957.76,955.0,4.53263881]
[1610374496836,13.47600632,956.23,955.0,4.53263881]
[1610374497037,1.0435,957.76,955.0,4.53263881]
[1610374497435,1.0435,955.75,952.41,2.1032]
[1610374497639,1.0435,955.75,952.0,2.36391256]
[1610374497640,1.0435,955.75,955.0,2.353]
[1610374498238,4.00959,955.01,955.0,1.653]
[1610374498439,1.0435,955.75,955.0,1.653]
[1610374499238,1.0435,955.75,952.0,0.60274989]
[1610374499441,1.0435,955.75,955.0,2.002]
[1610374499638,1.735,957.02,955.0,1.722]
[1610374499839,1.735,957.02,955.0,1.6136]
[1610374500439,4.00959,955.01,955.0,1.6136]
[1610374500639,1.735,957.02,955.0,1.6136]
[1610374500841,8.8086,955.01,955.0,1.6136]
[1610374501239,8.8086,955.01,952.77,4.00959]
[1610374501439,80.015,955.9,952.77,4.00959]
[1610374501641,80.015,955.9,952.77,5.75459]
[1610374502441,54.8775,955.9,952.77,1.745]
[1610374502642,1.13472,959.55,952.78,2.0871]
[1610374502843,85.1067,958.06,952.77,1.745]
[1610374503441,1.13472,959.55,952.77,1.745]
[1610374503643,59.40062014,961.11,953.93,73.1712]
[1610374503842,59.40062014,961.11,953.93,75.3992]
[1610374504241,57.53702014,961.11,953.93,84.3992]
[1610374504447,57.53702014,961.11,958.74,4.00959]
[1610374504642,1.05235,972.99,958.74,4.00959]
[1610374504842,60.0477,963.58,958.64,2.298]
[1610374505042,1.13652,962.68,958.64,2.298]
[1610374505241,3.03152,962.68,958.64,2.298]
[1610374506041,1.895,962.68,958.64,2.298]
[1610374506442,1.895,962.68,961.3,4.00959]
[1610374506727,62.4347,963.58,961.3,4.00959]
[1610374507043,60.0477,963.58,961.3,4.00959]
[1610374507441,60.0477,963.58,962.68,0.2017]
[1610374507643,60.0477,963.58,962.68,2.0617]
[1610374507844,1.05235,968.9,962.68,2.0617]
[1610374508042,1.05409,970.32,962.68,2.0617]
[1610374508443,1.01586,969.16,965.09,4.00959]
[1610374508642,1.01586,969.16,965.09,5.51859]
[1610374509242,1.01748,970.87,965.09,5.51859]
[1610374509442,1.13652,970.57,965.09,5.51859]
[1610374509843,1.05235,969.68,965.09,5.51859]
[1610374510243,1.03255,968.48,965.09,5.51859]
[1610374510444,1.03255,968.48,965.72,4.00959]
[1610374511445,0.1559,968.08,965.72,4.00959]
[1610374511645,2.0279,968.08,965.72,4.00959]
[1610374512245,1.05235,969.68,968.37,2.6161]
[1610374512445,4.00959,968.38,967.78,4.00959]
[1610374512645,5.55159,968.38,967.78,4.00959]
[1610374512846,5.55159,968.38,965.91,1.844]
[1610374513047,1.542,968.38,965.91,1.844]
[1610374513246,0.0694,968.38,965.91,1.844]
[1610374513647,85.8233,969.52,965.91,1.844]
[1610374514348,85.8233,969.52,969.51,4.00959]
[1610374514749,6.2178,970.56,969.51,4.00959]
[1610374515059,19.21753411,975.11,969.51,6.06159]
[1610374515450,6.2296,975.1,969.51,6.06159]
[1610374515649,8.2316,975.1,969.51,6.06159]
[1610374516262,6.7697,975.1,969.51,6.06159]
[1610374516449,6.7697,975.1,969.51,2.052]
[1610374517257,6.7697,975.1,969.51,2.0079]
[1610374517650,2.002,975.1,969.51,2.0079]
[1610374517866,2.002,975.1,969.14,2.424]
[1610374518461,4.00959,974.55,974.03,4.00959]
[1610374518663,1.95,974.55,969.14,2.424]
[1610374518865,1.4301,974.55,969.14,2.424]
[1610374519268,2.002,975.1,974.55,3.05]
[1610374519452,2.002,975.1,970.93,1.507]
[1610374519652,9.6556,974.55,970.93,1.507]
[1610374519853,1.629,974.55,970.93,1.507]
[1610374520652,2.189,974.55,969.14,2.424]
[1610374520852,2.189,974.55,968.42,1.581]
[1610374521052,2.189,974.55,965.91,1.844]
[1610374521252,2.189,974.55,965.73,30.0]
[1610374521454,2.189,974.55,965.74,2.0976]
[1610374521657,2.189,974.55,965.92,9.0]
[1610374522053,2.189,974.55,966.02,30.0]
[1610374522255,2.189,974.55,966.02,32.407]
[1610374522457,2.189,974.55,974.54,4.00959]
[1610374522657,2.189,974.55,969.29,1.559]
[1610374522853,2.189,974.55,970.51,1.829]
[1610374523753,2.189,974.55,970.03,2.321]
[1610374524153,2.189,974.55,966.13,30.0]
[1610374524357,2.189,974.55,966.79,0.31706736]
[1610374524554,2.189,974.55,973.59,4.00959]
[1610374524754,2.189,974.55,970.89,1.844]
[1610374525355,2.189,974.55,968.8,32.255]
[1610374525555,2.189,974.55,971.36,81.9872]
[1610374525756,16.79639004,975.39,971.36,81.9872]
[1610374525955,15.80489004,975.39,971.46,30.0]
[1610374526355,15.80489004,975.39,974.55,0.5096]
[1610374526555,15.80489004,975.39,975.38,4.00959]
[1610374526755,15.80489004,975.39,974.55,5.0]
[1610374527957,12.08129004,975.39,974.55,5.0]
[1610374528557,2.063,976.24,975.38,4.00959]
[1610374528755,2.063,976.24,975.38,6.23059]
[1610374529757,2.063,976.24,975.38,4.00959]
[1610374529960,2.063,976.24,975.38,36.01159]
[1610374530162,86.1073,976.7,975.38,36.01159]
[1610374530561,86.1073,976.7,976.69,4.00959]
[1610374531162,18.13317596,977.48,977.44,61.114]
[1610374531761,16.56420468,977.73,977.44,54.972]
[1610374531961,16.56420468,977.73,977.44,46.673]
[1610374532162,16.56420468,977.73,977.44,43.523]
[1610374532362,6.462,980.12,977.44,39.028]
[1610374532561,4.00959,981.0,980.11,4.00959]
[1610374532761,4.00959,981.0,977.44,39.028]
[1610374532762,21.0932149,983.73,977.44,39.028]
[1610374532961,5.8807,982.96,977.44,39.028]
[1610374533161,7.7957,982.96,977.44,39.028]
[1610374534166,7.7957,982.96,979.52,59.491]
[1610374534562,7.7957,982.96,981.49,4.00959]
[1610374534768,7.7957,982.96,979.52,59.491]
[1610374534963,5.2891,982.96,979.52,59.491]
[1610374535164,0.2891,982.96,979.52,59.491]
[1610374536164,0.2891,982.96,979.25,2.387]
[1610374536962,0.2891,982.96,982.95,4.00959]
[1610374537166,21.74413063,986.54,982.95,4.00959]
[1610374537962,21.74413063,986.54,982.95,1.13659]
[1610374537963,20.28083063,986.54,982.95,1.13659]
[1610374538165,20.28083063,986.54,980.55,2.337]
[1610374538365,22.16783063,986.54,980.55,2.337]
[1610374538964,18.0119732,980.79,980.55,2.337]
[1610374539165,1.878,981.33,980.55,2.337]
[1610374539364,4.00959,986.09,980.55,2.337]
[1610374539365,22.16783063,986.54,980.55,2.337]
[1610374539568,6.1664,986.08,980.55,2.337]
[1610374539766,7.9724,986.08,980.55,2.337]
[1610374540566,1.806,986.08,980.55,2.337]
[1610374540970,1.806,986.08,986.07,4.00959]
[1610374541181,0.2821,986.08,983.26,1.999]
[1610374541369,0.2821,986.08,982.15,2.016]
[1610374541973,19.0077475,983.11,982.16,2.0094]
[1610374542170,20.8957475,983.11,982.16,2.0094]
[1610374542573,14.9399475,983.11,982.16,2.0094]
[1610374542977,7.2819475,983.11,982.16,2.0094]
[1610374543208,2.104,986.08,983.11,1.356]
[1610374543577,6.444,989.75,983.11,3.204]
[1610374543776,22.94375344,990.73,983.11,3.204]
[1610374543973,22.94375344,990.73,983.11,3.00274015]
[1610374544171,21.45415344,990.73,983.11,3.00274015]
[1610374544372,23.88968778,993.35,983.12,2.0041]
[1610374545077,4.00959,991.31,990.24,4.00959]
[1610374545275,5.91759,991.31,983.11,3.00274015]
[1610374546072,6.4241,991.3,983.11,3.00274015]
[1610374546272,6.4241,991.3,983.12,2.0479]
[1610374547072,4.00959,990.49,983.12,2.0479]
[1610374547271,5.77959,990.49,983.12,2.0479]
[1610374547471,4.18039,990.49,983.12,2.0479]
[1610374547682,1.77,990.49,983.12,2.0479]
[1610374549074,4.00959,987.94,987.67,4.00959]
[1610374549275,5.91159,987.94,983.11,3.00274015]
[1610374549475,1.902,987.94,983.11,3.00274015]
[1610374550277,1.902,987.94,983.12,2.0377]
[1610374550478,0.4326,987.94,983.12,2.0377]
[1610374551075,0.4326,987.94,987.93,4.00959]
[1610374551277,1.77,990.49,987.93,4.00959]
[1610374552276,1.77,990.49,987.94,2.0201]
[1610374552477,6.4241,991.3,987.94,2.0201]
[1610374553485,4.9575,991.3,987.94,2.0201]
[1610374554077,1.908,991.31,987.94,2.0201]
[1610374554290,73.9373,992.73,987.94,2.0201]
[1610374555080,73.9373,992.73,990.96,4.00959]
[1610374555279,73.9373,992.73,987.87,80.2754]
[1610374555480,1.53,992.73,988.6,65.2947]
[1610374555882,1.53,992.73,988.6,67.0047]
[1610374556080,1.53,992.73,991.09,0.31430678]
[1610374556280,1.53,992.73,991.1,2.0025]
[1610374556480,1.53,992.73,990.99,0.62861355]
[1610374556681,72.8131,995.43,989.59,56.8019]
[1610374556880,1.8889,992.73,989.59,56.8019]
[1610374557080,20.05251766,990.78,989.59,56.8019]
[1610374557279,1.495,990.78,989.59,56.8019]
[1610374557485,12.51751316,991.02,989.59,56.8019]
[1610374557684,9.59611316,991.02,989.59,56.8019]
[1610374557882,8.22801316,991.02,989.59,56.8019]
[1610374558482,7.86351316,991.02,989.59,56.8019]
[1610374559079,7.86351316,991.02,991.01,4.00959]
[1610374559279,7.69031316,991.02,991.01,6.00079]
[1610374559479,6.51891316,991.02,991.01,6.00079]
[1610374559679,6.51891316,991.02,989.59,56.8019]
[1610374559881,6.68651316,991.02,989.59,56.8019]
[1610374560081,1.677,991.02,989.59,56.8019]
[1610374561081,0.6925,991.02,991.01,4.00959]
[1610374561482,1.8889,992.73,989.59,56.8019]
[1610374561884,66.1824,994.09,989.44,60.903]
[1610374562081,4.00959,994.28,985.56,1.58]
[1610374562282,4.00959,994.28,989.33,66.1701]
[1610374562683,6.3792,994.27,989.33,48.3341]
[1610374562884,6.3792,994.27,989.33,34.8051]
[1610374563083,4.00959,991.29,989.33,34.8051]
[1610374563283,6.32159,991.29,988.47,4.00959]
[1610374563510,2.312,991.29,988.47,4.00959]
[1610374563885,2.312,991.29,982.07,0.62770516]
[1610374564085,2.312,991.29,982.27,0.62777474]
[1610374564383,2.312,991.29,982.4,0.62915524]
[1610374564586,6.1973,991.28,982.4,0.62915524]
[1610374564785,6.1973,991.28,982.53,0.62747935]
[1610374564983,6.1973,991.28,982.36,0.6275683]
[1610374565183,4.00959,989.91,989.12,4.00959]
[1610374565385,5.60859,989.91,981.64,0.62745759]
[1610374565784,5.60859,989.91,982.1,0.62788997]
[1610374565984,4.13429,989.91,984.79,2.0243]
[1610374566385,1.599,989.91,984.79,2.0243]
[1610374566983,1.599,989.91,981.32,0.31292015]
[1610374567184,4.00959,989.89,988.86,4.00959]
[1610374567984,1.599,989.91,988.87,2.0059]
[1610374568186,1.599,989.91,988.01,75.0101]
[1610374569285,0.0529,989.91,989.86,4.00959]
[1610374569487,0.0529,989.91,988.01,75.0101]
[1610374570287,0.0529,989.91,988.02,2.0397]
[1610374570487,5.9042,991.27,988.02,4.0247]
[1610374570888,57.1732,992.32,988.02,4.0247]
[1610374571189,57.1732,992.32,992.31,4.00959]
[1610374571588,63.2996,993.02,992.31,4.00959]
[1610374571789,4.00959,993.9,992.31,4.00959]
[1610374572189,2.52859,993.9,992.31,4.00959]
[1610374572591,479.1323271,1011.5,992.31,4.00959]
[1610374572990,60.94678281,1007.9,992.31,4.00959]
[1610374573191,4.00959,994.84,994.42,4.00959]
[1610374573390,4.00959,994.84,991.52,1.8842]
[1610374573391,1.902,994.84,991.52,1.8842]
[1610374574190,1.0279,994.84,991.52,1.8842]
[1610374574791,66.85138281,1007.9,991.26,1.947]
[1610374575190,4.00959,1000.1,997.61,4.00959]
[1610374575391,4.50469,1000.1,991.26,1.947]
[1610374577194,4.00959,998.56,997.82,4.00959]
[1610374577395,2.379,998.56,991.26,1.947]
[1610374577794,2.379,998.56,990.76,2.261]
[1610374577994,2.379,998.56,990.61,2.0288]
[1610374578396,0.4527,998.56,990.61,2.0288]
[1610374579298,2.063,1001.0,997.48,4.00959]
[1610374579497,2.063,1001.0,997.48,5.82459]
[1610374581299,4.00959,999.1,998.29,4.00959]
[1610374581501,2.346,999.1,998.29,4.00959]
[1610374581899,2.346,999.1,997.42,63.7846]
[1610374583300,4.00959,998.14,997.6,4.00959]
[1610374583502,6.41859,998.14,997.6,4.00959]
[1610374583701,6.41859,998.14,997.42,63.7846]
[1610374584305,6.41859,998.14,989.0,0.31148719]
[1610374584702,4.78929,998.14,988.95,0.31148526]
[1610374585102,4.78929,998.14,989.18,0.31146878]
[1610374585303,4.00959,997.29,989.18,1.876]
[1610374585502,5.53659,997.29,991.31,78.1009]
[1610374585703,5.53659,997.29,991.31,80.1189]
[1610374587206,1.527,997.29,995.15,4.00959]
[1610374587806,0.0309,997.29,995.15,5.92159]
[1610374588611,0.0309,997.29,995.15,1.912]
[1610374588807,0.0309,997.29,994.34,2.191]
[1610374589208,4.00959,994.35,994.34,2.191]
[1610374589407,2.448,995.22,994.34,2.191]
[1610374590008,2.448,995.22,992.55,1.855]
[1610374590409,2.448,995.22,992.64,66.3389]
[1610374590810,0.9849,995.22,992.65,2.0119]
[1610374591014,0.9849,995.22,992.64,66.3389]
[1610374591208,74.4619,996.25,995.21,4.00959]
[1610374591408,74.4619,996.25,995.21,5.74059]
[1610374592612,74.4619,996.25,995.21,4.00959]
[1610374593015,74.4619,996.25,993.49,2.373]
[1610374593215,4.00959,995.52,993.68,4.00959]
[1610374593416,5.68859,995.52,993.68,4.00959]
[1610374593614,1.679,995.52,993.68,4.00959]
[1610374594019,0.1991,995.52,993.68,4.00959]
[1610374595018,75.9749,996.25,995.52,0.95564015]
[1610374595219,4.00959,995.53,995.52,0.95564015]
[1610374595418,75.9749,996.25,994.17,4.00959]
[1610374596018,75.9749,996.25,993.27,2.166]
[1610374596618,75.9749,996.25,992.64,66.3389]
[1610374597117,1.513,996.25,992.55,1.855]
[1610374597319,4.00959,995.42,986.48,0.31146323]
[1610374597518,6.28159,995.42,986.48,0.31146323]
[1610374597717,2.272,995.42,986.52,0.31150206]
[1610374597919,2.272,995.42,986.52,2.20050206]
[1610374598118,2.272,995.42,986.52,1.889]
[1610374598318,2.272,995.42,986.77,0.31146135]
[1610374598524,2.272,995.42,986.77,2.25446135]
[1610374598718,2.272,995.42,986.77,1.943]
[1610374599318,4.00959,993.85,986.77,1.943]
[1610374599720,5.78259,993.85,986.77,1.943]
[1610374599919,4.31359,993.85,986.77,1.943]
[1610374601320,4.00959,992.32,991.68,4.00959]
[1610374601520,2.455,992.32,991.68,4.00959]
[1610374602824,2.455,992.32,987.92,59.6829]
[1610374603025,0.9907,992.32,987.92,59.6829]
[1610374603425,0.9907,992.32,992.31,4.00959]
[1610374604027,1.773,993.85,992.32,4.9999]
[1610374604426,1.773,993.85,992.32,6.6379]
[1610374604627,1.773,993.85,991.83,2.005]
[1610374604826,1.615,993.88,991.05,1.806]
[1610374605026,1.615,993.88,990.73,1.831]
[1610374605427,4.00959,991.51,990.73,1.831]
[1610374605929,4.00959,991.51,984.34,0.31190752]
[1610374606129,2.52639,991.51,984.34,0.31190752]
[1610374606327,2.52639,991.51,984.2,0.31196363]
[1610374606527,2.52639,991.51,983.77,0.31218022]
[1610374606729,2.52639,991.51,983.84,0.31144818]
[1610374607131,2.52639,991.51,984.14,0.31220265]
[1610374607329,1.501,991.56,988.38,4.00959]
[1610374607530,1.501,991.56,987.63,1.677]
[1610374607728,1.501,991.56,986.74,1.507]
[1610374608728,1.501,991.56,983.05,0.31264752]
[1610374608931,1.501,991.56,982.75,0.31259867]
[1610374609330,75.7806,990.24,988.72,4.00959]
[1610374609531,77.8956,990.24,985.92,72.2289]
[1610374610131,75.7806,990.24,985.92,72.2289]
[1610374610332,78.1826,990.24,985.92,72.2289]
[1610374611332,4.00959,987.86,987.65,4.00959]
[1610374611531,2.368,987.94,985.92,72.2289]
[1610374611730,2.368,987.94,985.92,74.4849]
[1610374612132,0.8883,987.94,985.92,74.4849]
[1610374612534,0.8883,987.94,985.92,2.256]
[1610374612733,0.8883,987.94,985.6,2.108]
[1610374613333,4.00959,986.73,985.7,4.00959]
[1610374613535,1.902,986.73,985.7,4.00959]
[1610374613935,1.902,986.73,985.6,2.108]
[1610374614333,1.902,986.73,981.64,0.31285799]
[1610374614534,1.902,986.73,981.83,0.31289631]
[1610374614734,1.902,986.73,981.83,2.09]
[1610374615134,1.902,986.73,982.19,0.31275652]
[1610374615333,0.4228,986.73,986.72,4.00959]
[1610374615534,0.8883,987.94,986.72,4.00959]
[1610374615736,0.8883,987.94,986.72,6.00159]
[1610374615935,5.9412,990.23,986.72,6.00159]
[1610374616334,5.9412,990.23,986.42,2.336]
[1610374616535,5.9412,990.23,982.13,0.31274326]
[1610374616934,5.9412,990.23,981.97,0.31282796]
[1610374617135,5.9412,990.23,981.85,0.31296903]
[1610374617334,4.00959,986.95,981.85,0.31296903]
[1610374617535,5.56359,986.95,985.31,61.6234]
[1610374617735,5.56359,986.95,985.31,63.8474]
[1610374618335,4.09949,986.95,985.31,63.8474]
[1610374618536,1.554,986.95,985.31,2.224]
[1610374618937,5.9412,990.23,985.31,2.224]
[1610374619338,4.00959,989.15,988.16,4.00959]
[1610374619539,1.897,989.15,988.16,4.00959]
[1610374620140,1.897,989.15,985.31,2.224]
[1610374621340,4.00959,988.47,985.31,2.224]
[1610374621539,1.67,988.47,985.31,2.224]
[1610374622840,1.67,988.47,981.84,0.31284292]
[1610374623040,1.67,988.47,982.04,0.31275252]
[1610374623241,1.67,988.47,982.04,1.93475252]
[1610374623441,4.00959,987.65,982.13,0.31285419]
[1610374623643,4.00959,987.65,982.04,1.622]
[1610374623840,1.639,987.77,982.04,1.622]
[1610374625342,4.00959,988.13,987.76,4.00959]
[1610374625542,4.00959,988.13,985.72,1.559]
[1610374625742,6.26159,988.13,985.95,1.86]
[1610374627442,4.00959,987.97,987.16,4.00959]
[1610374627644,4.00959,987.97,985.95,1.86]
[1610374628043,2.252,988.13,985.95,1.86]
[1610374628246,0.7392,988.13,985.95,1.86]
[1610374629347,0.7392,988.13,987.37,4.00959]
[1610374629547,1.4208,988.47,987.37,6.33459]
[1610374629847,63.0298,988.98,987.37,6.33459]
[1610374631348,63.0298,988.98,988.97,4.00959]
[1610374631546,6.3304,996.11,988.97,4.00959]
[1610374631547,6.3304,996.11,988.97,5.89259]
[1610374631947,6.3304,996.11,988.98,1.6]
[1610374632148,6.3304,996.11,988.98,5.0]
[1610374633349,4.00959,994.77,992.63,4.00959]
[1610374633548,5.71659,994.77,992.63,4.00959]
[1610374634150,5.71659,994.77,988.98,5.0]
[1610374634557,4.20019,994.77,988.98,5.0]
[1610374635401,4.00959,991.42,991.18,4.00959]
[1610374635567,5.57459,991.42,988.98,5.0]
[1610374635962,1.565,991.42,988.98,5.0]
[1610374636573,1.793,992.39,988.98,5.0]
[1610374637560,0.3146,992.39,992.38,4.00959]
[1610374637957,0.3146,992.39,991.46,1.948]
[1610374638756,0.3146,992.39,988.98,5.0]
[1610374639557,0.3146,992.39,992.38,4.00959]
[1610374640157,0.3146,992.39,990.91,1.879]
[1610374640561,73.1543,993.64,990.91,1.879]
[1610374640760,1.707,994.77,990.91,1.879]
[1610374640958,6.3147,996.31,990.91,1.879]
[1610374641561,6.3147,996.31,994.22,4.00959]
[1610374642060,6.3147,996.31,992.8,2.153]
[1610374642263,7.9397,996.31,992.8,2.153]
[1610374642863,7.9397,996.31,990.91,1.879]
[1610374643663,6.4487,996.31,988.98,5.0]
[1610374644564,0.6,994.76,988.98,5.0]
[1610374644766,2.314,994.76,988.98,5.0]
[1610374645465,4.00959,990.89,989.68,4.00959]
[1610374645667,2.046,990.89,989.68,4.00959]
[1610374646065,1.919,990.89,989.68,4.00959]
[1610374646766,0.4415,990.89,989.68,4.00959]
[1610374646966,2.386,991.83,989.68,4.00959]
[1610374647170,2.386,991.83,989.68,6.18459]
[1610374647371,2.386,991.83,991.82,4.00959]
[1610374647570,2.386,991.83,991.82,6.09059]
[1610374647772,2.314,994.76,991.82,6.09059]
[1610374649472,4.00959,994.21,991.82,2.081]
[1610374649671,6.18459,994.21,991.82,2.081]
[1610374650276,4.51759,994.21,991.82,2.081]
[1610374651481,4.00959,992.47,991.91,4.00959]
[1610374651883,4.00959,992.47,989.68,2.175]
[1610374652282,4.00959,992.47,988.98,5.0]
[1610374653287,2.47029,992.47,988.98,5.0]
[1610374653486,4.00959,989.76,989.07,4.00959]
[1610374653687,4.00959,989.76,988.98,5.0]
[1610374654090,1.877,989.87,988.98,5.0]
[1610374654590,1.877,989.87,983.58,0.31268773]
[1610374654990,1.877,989.87,989.76,5.0]
[1610374655392,4.00959,989.77,989.76,5.0]
[1610374655588,1.877,989.87,989.76,5.0]
[1610374656391,0.3648,989.87,989.76,5.0]
[1610374657290,2.38,992.55,989.76,5.0]
[1610374657493,4.00959,991.53,990.57,4.00959]
[1610374657701,5.69459,991.53,990.57,4.00959]
[1610374658094,1.685,991.53,990.57,4.00959]
[1610374659494,0.2178,991.53,991.52,4.00959]
[1610374659891,0.2178,991.53,989.76,5.0]
[1610374661595,4.00959,990.35,989.76,5.0]
[1610374661795,6.34659,990.35,989.76,5.0]
[1610374662694,4.88809,990.35,989.76,5.0]
[1610374663115,4.88809,990.35,982.06,1.25253335]
[1610374663116,4.88809,990.35,982.4,0.31307024]
[1610374663397,4.88809,990.35,982.26,0.31305546]
[1610374663596,4.00959,988.64,987.03,4.00959]
[1610374663798,5.92159,988.64,987.03,4.00959]
[1610374664196,5.92159,988.64,981.67,0.31339116]
[1610374664397,5.92159,988.64,981.72,0.31199095]
[1610374664796,5.92159,988.64,981.62,0.6239819]
[1610374664797,5.92159,988.64,981.41,0.31364297]
[1610374665196,5.92159,988.64,980.79,0.31388663]
[1610374665597,2.53669,986.74,982.74,83.0997]
[1610374665796,5.01069,986.74,982.74,83.0997]
[1610374666400,5.01069,986.74,982.75,6.4772]
[1610374666598,5.01069,986.74,982.75,8.8422]
[1610374666798,5.01069,986.74,982.75,8.4422]
[1610374667199,2.474,986.74,982.75,8.4422]
[1610374667600,2.474,986.74,986.73,4.00959]
[1610374667800,1.912,988.64,986.73,4.00959]
[1610374668199,1.912,988.64,982.75,8.4422]
[1610374668200,1.912,988.64,985.4,2.056]
[1610374668501,0.4531,988.64,985.4,2.056]
[1610374668903,1.39462,988.33,982.75,8.4422]
[1610374669101,3.09762,988.33,982.75,8.4422]
[1610374669301,3.09762,988.33,985.3,78.158]
[1610374669502,4.00959,985.31,985.3,78.158]
[1610374669704,71.84499,985.31,982.75,8.4422]
[1610374670907,71.84499,985.31,982.75,6.0772]
[1610374671307,67.8354,985.31,982.75,6.0772]
[1610374671509,66.3614,985.31,982.75,6.0772]
[1610374671708,4.00959,984.28,983.44,4.00959]
[1610374671907,6.35059,984.28,983.44,4.00959]
[1610374672308,66.3614,985.31,983.44,4.00959]
[1610374673208,66.3614,985.31,983.14,1.882]
[1610374673824,4.00959,983.28,983.14,1.882]
[1610374674208,4.00959,983.28,982.75,6.0772]
[1610374674608,6.03559,983.28,982.75,6.0772]
[1610374674809,66.0692,982.78,980.02,71.0091]
[1610374675009,68.4592,982.78,980.02,71.0091]
[1610374675409,19.7987,982.78,980.02,71.0091]
[1610374675809,4.00959,981.64,980.02,71.0091]
[1610374676232,17.4087,982.78,980.02,71.0091]
[1610374676411,2.331,981.86,980.02,73.3381]
[1610374677811,0.814,981.86,980.02,73.3381]
[1610374678010,2.402,982.14,980.02,73.3381]
[1610374678419,17.4087,982.78,982.13,4.00959]
[1610374678614,17.4087,982.78,982.13,6.03359]
[1610374678814,1.11852,987.48,982.13,6.03359]
[1610374680415,4.00959,985.29,982.13,2.024]
[1610374681516,4.6195,984.48,982.13,2.024]
[1610374682417,4.00959,983.3,982.13,2.024]
[1610374682617,6.07059,983.3,982.13,2.024]
[1610374683619,1.23412,983.29,980.02,2.329]
[1610374683821,75.34732,983.29,979.99,67.909]
[1610374684419,73.88242,983.29,979.99,67.909]
[1610374686522,73.88242,983.29,983.28,4.00959]
[1610374686725,65.6283,985.62,983.28,5.98059]
[1610374686922,5.9017,986.99,983.28,5.98059]
[1610374687522,69.3277,986.88,983.28,1.971]
[1610374687722,3.0607,984.48,983.28,1.971]
[1610374688524,4.00959,983.67,983.28,1.971]
[1610374689127,5.93259,983.67,974.22,0.31623393]
[1610374689326,5.93259,983.67,974.31,0.3163674]
[1610374689624,5.93259,983.67,974.31,2.466]
[1610374690424,4.00959,982.11,981.35,4.00959]
[1610374690625,2.53879,982.11,974.31,2.466]
[1610374690825,1.678,982.33,974.31,2.466]
[1610374691626,1.923,983.67,974.31,2.466]
[1610374691929,1.923,983.67,977.0,0.31563312]
[1610374692128,1.923,983.67,977.0,2.29063312]
[1610374692328,1.923,983.67,977.0,1.975]